[Event "41st Jacques-Lemans-Open 2022"]
[Site "St. Veit/Glan"]
[Date "2022.07.13"]
[Round "5.5"]
[White "Windhager, Hannes"]
[Black "Ernst, Robert"]
[Result "1-0"]
[ECO "B40"]
[WhiteElo "2244"]
[BlackElo "2001"]
[Annotator "ChessBase"]
[PlyCount "211"]
[EventDate "2022.07.09"]
[EventType "swiss"]
[EventCountry "AUT"]
[SourceTitle "playchess.com"]
[Source "ChessBase"]
[SourceQuality "1"]
[TimeControl "40/5400+30:1800+30"]

1. e4 {[%emt 0:00:03]} c5 {[%emt 0:00:16]} 2. Nf3 {[%emt 0:00:09]} e6 {[%emt 0:00:09]} 3. g3 {[%emt 0:00:15]} Nc6 {[%emt 0:00:51]} 4. Bg2 {[%emt 0:00:12]} Nf6 {[%emt 0:01:12]} 5. Qe2 {[%emt 0:00:33]} d6 {[%emt 0:01:27]} 6. O-O {[%emt 0:00:33]} Be7 {[%emt 0:00:33]} 7. c3 {[%emt 0:00:31]} O-O {[%emt 0:02:19]} 8. d4 {[%emt 0:00:28]} Qc7 {[%emt 0:07:08]} 9. e5 {[%emt 0:05:41]} Nd7 {[%emt 0:05:59]} 10. exd6 {[%emt 0:04:53]} Bxd6 {[%emt 0:00:27]} 11. dxc5 {[%emt 0:00:53]} Nxc5 {[%emt 0:00:48]} 12. Na3 {[%emt 0:02:15]} Qe7 {[%emt 0:05:53]} 13. Nb5 {[%emt 0:06:44]} Bb8 {[%emt 0:00:50]} 14. b4 {[%emt 0:08:48]} Nd7 {[%emt 0:14:48]} 15. Be3 {[%emt 0:09:01]} a6 {[%emt 0:05:30]} 16. Nbd4 {[%emt 0:00:35]} Nxd4 {[%emt 0:00:39]} 17. Nxd4 {[%emt 0:03:34]} Nf6 {[%emt 0:06:54]} 18. Nb3 {[%emt 0:04:11]} Ba7 {[%emt 0:06:38]} 19. Rfd1 {[%emt 0:06:02]} Bxe3 {[%emt 0:12:44]} 20. Qxe3 {[%emt 0:00:12]} Qc7 {[%emt 0:07:17]} 21. Qc5 {[%emt 0:02:12]} Qxc5 {[%emt 0:00:20]} 22. Nxc5 {[%emt 0:00:06]} Rb8 {[%emt 0:00:15]} 23. Rd6 {[%emt 0:04:54]} b6 {[%emt 0:05:16]} 24. Na4 {[%emt 0:01:32]} Bd7 {[%emt 0:00:06]} 25. Nxb6 {[%emt 0:03:40]} Bb5 {[%emt 0:00:13]} 26. a4 {[%emt 0:03:24]} Ne8 {[%emt 0:00:06]} 27. axb5 {[%emt 0:04:01]} Nxd6 {[%emt 0:00:01]} 28. bxa6 {[%emt 0:01:53]} Rxb6 {[%emt 0:00:16]} 29. a7 {[%emt 0:00:07]} f5 {[%emt 0:00:24]} 30. a8=Q {[%emt 0:00:49]} Rxa8 {[%emt 0:00:06]} 31. Rxa8+ {[%emt 0:00:21]} Kf7 {[%emt 0:00:02]} 32. f4 {[%emt 0:02:32]} Nb5 {[%emt 0:01:18]} 33. c4 {[%emt 0:03:34]} Nd4 {[%emt 0:04:27]} 34. Rd8 {[%emt 0:02:55]} Ne2+ {[%emt 0:00:07]} 35. Kf2 {[%emt 0:00:33]} Rxb4 {[%emt 0:00:02]} 36. Kxe2 {[%emt 0:00:15]} Rxc4 {[%emt 0:00:07]} 37. Ke3 {[%emt 0:02:36]} h6 {[%emt 0:00:50]} 38. Bf3 {[%emt 0:06:52]} Ke7 {[%emt 0:03:55]} 39. Rd2 {[%emt 0:02:13]} g5 {[%emt 0:01:15]} 40. Rd4 {[%emt 0:03:47]} Rc2 {[%emt 0:03:02]} 41. Be2 {[%emt 0:30:52]} Rb2 {[%emt 0:14:22]} 42. Ra4 {[%emt 0:00:00]} Rb3+ {[%emt 0:00:50]} 43. Kf2 {[%emt 0:00:00]} Kf6 {[%emt 0:00:45]} 44. Ra7 {[%emt 0:00:00]} Rb4 {[%emt 0:01:22]} 45. Ke3 {[%emt 0:00:00]} Rb3+ {[%emt 0:00:16]} 46. Kf2 {[%emt 0:00:00]} Rb4 {[%emt 0:00:07]} 47. fxg5+ {[%emt 0:00:00]} hxg5 {[%emt 0:00:06]} 48. h3 {[%emt 0:00:00]} Kg6 {[%emt 0:00:39]} 49. Re7 {[%emt 0:00:00]} Kf6 {[%emt 0:00:06]} 50. Rh7 {[%emt 0:00:00]} Kg6 {[%emt 0:00:05]} 51. Rh8 {[%emt 0:00:00]} Kg7 {[%emt 0:00:06]} 52. Rh5 {[%emt 0:00:00]} Kg6 {[%emt 0:00:10]} 53. Rh8 {[%emt 0:00:00]} Kg7 {[%emt 0:00:05]} 54. Rc8 {[%emt 0:00:00]} f4 {[%emt 0:02:04]} 55. gxf4 {[%emt 0:00:00]} Rxf4+ {[%emt 0:00:05]} 56. Ke3 {[%emt 0:00:00]} Ra4 {[%emt 0:03:16]} 57. Bg4 {[%emt 0:00:00]} Kf6 {[%emt 0:00:16]} 58. Rc6 {[%emt 0:00:00]} Ra3+ {[%emt 0:00:42]} 59. Kd4 {[%emt 0:00:00]} Ra4+ {[%emt 0:00:10]} 60. Kc5 {[%emt 0:00:37]} Re4 {[%emt 0:00:06]} 61. Kb6 {[%emt 0:01:31]} Re5 {[%emt 0:01:10]} 62. Kc7 {[%emt 0:02:54]} Ke7 {[%emt 0:05:38]} 63. Kc8 {[%emt 0:00:24]} Re3 {[%emt 0:00:13]} 64. Rc5 {[%emt 0:01:18]} Kf6 {[%emt 0:00:22]} 65. Kd7 {[%emt 0:02:24]} Ra3 {[%emt 0:04:54]} 66. Rc6 {[%emt 0:00:55]} Ra7+ {[%emt 0:00:08]} 67. Kd6 {[%emt 0:00:37]} Re7 {[%emt 0:00:43]} 68. Ra6 {[%emt 0:04:16]} Re8 {[%emt 0:00:26]} 69. Kd7 {[%emt 0:00:47]} Re7+ {[%emt 0:00:11]} 70. Kd8 {[%emt 0:00:26]} Kf7 {[%emt 0:00:10]} 71. Ra1 {[%emt 0:01:25]} Re8+ {[%emt 0:00:34]} 72. Kd7 {[%emt 0:00:04]} Re7+ {[%emt 0:00:41]} 73. Kd6 {[%emt 0:00:08]} Rb7 {[%emt 0:00:59]} 74. Bxe6+ {[%emt 0:00:25]} Kg6 {[%emt 0:00:29]} 75. Bg4 {[%emt 0:00:23]} Rb6+ {[%emt 0:00:28]} 76. Ke7 {[%emt 0:00:55]} Rb7+ {[%emt 0:00:28]} 77. Bd7 {[%emt 0:00:22]} Rb3 {[%emt 0:02:21]} 78. Ra6+ {[%emt 0:00:30]} Kg7 {[%emt 0:03:28]} 79. Bg4 {[%emt 0:00:58]} Re3+ {[%emt 0:00:11]} 80. Kd6 {[%emt 0:00:38]} Kf6 {[%emt 0:00:41]} 81. Kd5+ {[%emt 0:00:19]} Kg7 {[%emt 0:00:47]} 82. Bf5 {[%emt 0:00:34]} Kf7 {[%emt 0:00:32]} 83. Rh6 {[%emt 0:00:24]} Ra3 {[%emt 0:00:23]} 84. Ke4 {[%emt 0:01:24]} Ra4+ {[%emt 0:00:17]} 85. Ke3 {[%emt 0:00:23]} Rf4 {[%emt 0:00:32]} 86. Bc8 {[%emt 0:01:10]} Kg7 {[%emt 0:00:41]} 87. Rc6 {[%emt 0:00:14]} Kf7 {[%emt 0:00:32]} 88. Bg4 {[%emt 0:01:19]} Kg7 {[%emt 0:00:18]} 89. Bf3 {[%emt 0:00:38]} Rf6 {[%emt 0:00:49]} 90. Rc5 {[%emt 0:00:11]} Kg6 {[%emt 0:02:09]} 91. Kf2 {[%emt 0:00:15]} Rf5 {[%emt 0:00:18]} 92. Rc8 {[%emt 0:00:16]} Rf4 {[%emt 0:00:07]} 93. Kg3 {[%emt 0:00:10]} Kf6 {[%emt 0:00:16]} 94. Bg4 {[%emt 0:01:31]} Ra4 {[%emt 0:00:14]} 95. Rc6+ {[%emt 0:00:14]} Kg7 {[%emt 0:00:55]} 96. Bf5 {[%emt 0:00:24]} Ra5 {[%emt 0:00:21]} 97. Kg4 {[%emt 0:00:15]} Ra1 {[%emt 0:00:56]} 98. Kxg5 {[%emt 0:00:07]} Rg1+ {[%emt 0:00:06]} 99. Bg4 {[%emt 0:00:06]} Rb1 {[%emt 0:00:38]} 100. h4 {[%emt 0:00:10]} Rg1 {[%emt 0:00:31]} 101. Rc7+ {[%emt 0:00:09]} Kh8 {[%emt 0:00:05]} 102. h5 {[%emt 0:00:53]} Rg2 {[%emt 0:00:10]} 103. Kf4 {[%emt 0:02:12]} Rg1 {[%emt 0:00:50]} 104. h6 {[%emt 0:00:22]} Rh1 {[%emt 0:00:29]} 105. Kg5 {[%emt 0:00:30]} Rg1 {[%emt 0:00:07]} 106. Kh5 {[%emt 0:00:14]} 1-0

[Event "41st Jacques-Lemans-Open 2022"]
[Site "St. Veit/Glan"]
[Date "2022.07.12"]
[Round "5.6"]
[White "Fahrner, Kurt"]
[Black "Manhardt, Thomas"]
[Result "0-1"]
[ECO "A81"]
[WhiteElo "2331"]
[BlackElo "2227"]
[Annotator "ChessBase"]
[PlyCount "100"]
[EventDate "2022.07.09"]
[EventType "swiss"]
[EventCountry "AUT"]
[SourceTitle "playchess.com"]
[Source "ChessBase"]
[SourceQuality "1"]
[TimeControl "40/5400+30:1800+30"]

1. d4 {[%emt 0:00:03]} f5 {[%emt 0:00:09]} 2. g3 {[%emt 0:00:11]} Nf6 {[%emt 0:00:15]} 3. Bg2 {[%emt 0:00:06]} g6 {[%emt 0:00:28]} 4. Nf3 {[%emt 0:00:07]} Bg7 {[%emt 0:00:05]} 5. O-O {[%emt 0:00:05]} O-O {[%emt 0:00:34]} 6. b4 {[%emt 0:00:05]} c6 {[%emt 0:02:57]} 7. a4 {[%emt 0:04:36]} a6 {[%emt 0:04:22]} 8. a5 {[%emt 0:15:35]} d6 {[%emt 0:04:12]} 9. Bb2 {[%emt 0:08:42]} Kh8 {[%emt 0:06:49]} 10. c4 {[%emt 0:10:01]} Be6 {[%emt 0:02:33]} 11. d5 {[%emt 0:06:45]} Bg8 {[%emt 0:05:12]} 12. Nc3 {[%emt 0:00:53]} Nbd7 {[%emt 0:17:21]} 13. Qb3 {[%emt 0:16:17]} e5 {[%emt 0:09:07]} 14. dxe6 {[%emt 0:00:34]} Bxe6 {[%emt 0:00:07]} 15. Rfd1 {[%emt 0:10:56]} Qc7 {[%emt 0:04:30]} 16. Rac1 {[%emt 0:02:05]} Bg8 {[%emt 0:02:34]} 17. Na4 {[%emt 0:04:04]} Rad8 {[%emt 0:07:19]} 18. Qa3 {[%emt 0:03:45]} Ne5 {[%emt 0:03:50]} 19. Nb6 {[%emt 0:00:21]} Nfd7 {[%emt 0:02:43]} 20. Qa1 {[%emt 0:03:46]} Nxb6 {[%emt 0:05:55]} 21. axb6 {[%emt 0:00:09]} Qe7 {[%emt 0:00:13]} 22. c5 {[%emt 0:02:06]} Nxf3+ {[%emt 0:04:39]} 23. Bxf3 {[%emt 0:00:27]} d5 {[%emt 0:03:04]} 24. e3 {[%emt 0:02:47]} Bxb2 {[%emt 0:01:00]} 25. Qxb2+ {[%emt 0:00:04]} Qg7 {[%emt 0:01:26]} 26. Rd4 {[%emt 0:03:12]} Rde8 {[%emt 0:02:11]} 27. Qa1 {[%emt 0:02:55]} Be6 {[%emt 0:00:54]} 28. Rd2 {[%emt 0:02:29]} Rf6 {[%emt 0:01:28]} 29. Qd4 {[%emt 0:00:21]} Kg8 {[%emt 0:00:15]} 30. Ra1 {[%emt 0:00:13]} Qf7 {[%emt 0:01:36]} 31. Qf4 {[%emt 0:00:50]} Kg7 {[%emt 0:01:48]} 32. h4 {[%emt 0:00:23]} h6 {[%emt 0:00:18]} 33. b5 {[%emt 0:01:18]} axb5 {[%emt 0:01:25]} 34. Rda2 {[%emt 0:00:45]} Bc8 {[%emt 0:00:52]} 35. Ra8 {[%emt 0:00:07]} Qe7 {[%emt 0:00:38]} 36. Rb8 {[%emt 0:00:28]} Rff8 {[%emt 0:00:59]} 37. Raa8 {[%emt 0:00:56]} h5 {[%emt 0:03:50]} 38. Kg2 {[%emt 0:00:22]} Kf7 {[%emt 0:00:42]} 39. Bxh5 {[%emt 0:00:28]} gxh5 40. Rxc8 {[%emt 0:00:02]} Rxc8 {[%emt 0:01:29]} 41. Rxc8 {[%emt 0:30:31]} Qe4+ {[%emt 0:20:54]} 42. Qxe4 {[%emt 0:00:00]} dxe4 {[%emt 0:00:04]} 43. Rc7+ {[%emt 0:00:00]} Ke6 {[%emt 0:00:05]} 44. Rxb7 {[%emt 0:00:00]} b4 {[%emt 0:01:54]} 45. Rc7 {[%emt 0:00:00]} Kd5 {[%emt 0:01:01]} 46. b7 {[%emt 0:00:00]} Rb8 {[%emt 0:04:12]} 47. Rf7 {[%emt 0:00:00]} b3 {[%emt 0:01:03]} 48. Rxf5+ {[%emt 0:00:00]} Kc4 {[%emt 0:00:17]} 49. Re5 {[%emt 0:00:00]} b2 {[%emt 0:00:49]} 50. Rxe4+ {[%emt 0:00:00]} Kxc5 {[%emt 0:01:25]} 0-1

[Event "41st Jacques-Lemans-Open 2022"]
[Site "St. Veit/Glan"]
[Date "2022.07.12"]
[Round "5.7"]
[White "Hechl, Gerald"]
[Black "Praznik, Niko"]
[Result "1-0"]
[ECO "A40"]
[WhiteElo "2222"]
[BlackElo "2325"]
[Annotator "ChessBase"]
[PlyCount "67"]
[EventDate "2022.07.09"]
[EventType "swiss"]
[EventCountry "AUT"]
[SourceTitle "playchess.com"]
[Source "ChessBase"]
[SourceQuality "1"]
[TimeControl "40/5400+30:1800+30"]

1. d4 {[%emt 0:00:03]} e6 {[%emt 0:01:01]} 2. c4 {[%emt 0:01:49]} b6 {[%emt 0:00:16]} 3. a3 {[%emt 0:01:20]} Bb7 {[%emt 0:00:18]} 4. Nc3 {[%emt 0:00:09]} Nf6 {[%emt 0:02:22]} 5. Bf4 {[%emt 0:07:28]} Be7 {[%emt 0:01:27]} 6. e3 {[%emt 0:01:10]} O-O {[%emt 0:00:12]} 7. Nf3 {[%emt 0:00:22]} d5 {[%emt 0:04:14]} 8. cxd5 {[%emt 0:02:57]} Nxd5 {[%emt 0:06:56]} 9. Nxd5 {[%emt 0:00:20]} exd5 {[%emt 0:01:17]} 10. Rc1 {[%emt 0:05:52]} c5 {[%emt 0:00:22]} 11. Bd3 {[%emt 0:02:14]} Nd7 {[%emt 0:00:51]} 12. O-O {[%emt 0:00:54]} Nf6 {[%emt 0:00:14]} 13. Ne5 {[%emt 0:02:02]} c4 {[%emt 0:03:37]} 14. Bb1 {[%emt 0:01:43]} b5 {[%emt 0:00:25]} 15. Qc2 {[%emt 0:20:08]} g6 {[%emt 0:04:35]} 16. Bh6 {[%emt 0:00:07]} Re8 {[%emt 0:00:05]} 17. f4 {[%emt 0:01:05]} Ne4 {[%emt 0:07:25]} 18. f5 {[%emt 0:00:13]} f6 {[%emt 0:00:11]} 19. fxg6 {[%emt 0:07:37]} fxe5 {[%emt 0:11:03]} 20. Rf7 {[%emt 0:00:06]} hxg6 {[%emt 0:00:08]} 21. Rcf1 {[%emt 0:00:21]} Bg5 {[%emt 0:00:34]} 22. Rg7+ {[%emt 0:06:46]} Kh8 {[%emt 0:01:21]} 23. Rxg6 {[%emt 0:00:04]} Bxh6 {[%emt 0:04:15]} 24. Rxh6+ {[%emt 0:00:07]} Kg7 {[%emt 0:00:07]} 25. Rh3 {[%emt 0:02:00]} Re6 {[%emt 0:07:21]} 26. Rg3+ {[%emt 0:03:26]} Rg6 {[%emt 0:01:18]} 27. Rxg6+ {[%emt 0:00:06]} Kxg6 {[%emt 0:00:04]} 28. Qf2 {[%emt 0:00:09]} Qe7 {[%emt 0:05:16]} 29. Qf5+ {[%emt 0:03:12]} Kg7 {[%emt 0:00:25]} 30. Bxe4 {[%emt 0:01:08]} dxe4 {[%emt 0:00:16]} 31. Qg4+ {[%emt 0:00:07]} Kh8 {[%emt 0:04:59]} 32. Rf5 {[%emt 0:00:33]} Rg8 {[%emt 0:00:46]} 33. Rh5+ {[%emt 0:00:08]} Qh7 {[%emt 0:00:05]} 34. Qf5 {[%emt 0:01:01]} 1-0

[Event "41st Jacques-Lemans-Open 2022"]
[Site "St. Veit/Glan"]
[Date "2022.07.12"]
[Round "5.8"]
[White "Schernthaner, David"]
[Black "Lerch, Johannes"]
[Result "1/2-1/2"]
[ECO "E32"]
[WhiteElo "2319"]
[BlackElo "2222"]
[Annotator "ChessBase"]
[PlyCount "183"]
[EventDate "2022.07.09"]
[EventType "swiss"]
[EventCountry "AUT"]
[SourceTitle "playchess.com"]
[Source "ChessBase"]
[SourceQuality "1"]
[TimeControl "40/5400+30:1800+30"]

1. d4 {[%emt 0:00:02]} Nf6 {[%emt 0:00:05]} 2. c4 {[%emt 0:00:05]} e6 {[%emt 0:00:04]} 3. Nc3 {[%emt 0:00:05]} Bb4 {[%emt 0:00:04]} 4. Qc2 {[%emt 0:00:05]} O-O {[%emt 0:00:05]} 5. a3 {[%emt 0:00:33]} Bxc3+ {[%emt 0:00:09]} 6. Qxc3 {[%emt 0:00:06]} d5 {[%emt 0:00:11]} 7. Nf3 {[%emt 0:01:25]} dxc4 {[%emt 0:01:19]} 8. Qxc4 {[%emt 0:02:17]} b6 {[%emt 0:04:32]} 9. Bg5 {[%emt 0:01:16]} Ba6 {[%emt 0:04:05]} 10. Qa4 {[%emt 0:05:32]} Qd7 {[%emt 0:07:54]} 11. Qxd7 {[%emt 0:05:12]} Nbxd7 {[%emt 0:00:21]} 12. Bxf6 {[%emt 0:02:03]} Nxf6 {[%emt 0:00:30]} 13. Rc1 {[%emt 0:00:50]} Rac8 {[%emt 0:09:07]} 14. e3 {[%emt 0:07:42]} Bxf1 {[%emt 0:00:32]} 15. Rxf1 {[%emt 0:00:05]} Nd7 {[%emt 0:01:57]} 16. Rc6 {[%emt 0:04:20]} Nb8 {[%emt 0:01:24]} 17. Rc2 {[%emt 0:00:06]} Nd7 {[%emt 0:08:19]} 18. Ke2 {[%emt 0:00:54]} c5 {[%emt 0:02:53]} 19. Rfc1 {[%emt 0:00:15]} Rb8 {[%emt 0:16:20]} 20. dxc5 {[%emt 0:01:26]} bxc5 {[%emt 0:01:21]} 21. Nd2 {[%emt 0:08:41]} Rb5 {[%emt 0:01:53]} 22. Ne4 {[%emt 0:12:37]} Rfb8 {[%emt 0:09:58]} 23. Nxc5 {[%emt 0:03:31]} Nxc5 {[%emt 0:00:09]} 24. Rxc5 {[%emt 0:00:04]} Rxb2+ {[%emt 0:00:37]} 25. Kf3 {[%emt 0:00:40]} g6 {[%emt 0:04:03]} 26. Rc8+ {[%emt 0:00:13]} Kg7 {[%emt 0:00:17]} 27. Rxb8 {[%emt 0:00:27]} Rxb8 {[%emt 0:00:01]} 28. Rc7 {[%emt 0:00:10]} a6 {[%emt 0:10:37]} 29. Rc6 {[%emt 0:01:16]} a5 {[%emt 0:00:09]} 30. Rc5 {[%emt 0:00:06]} a4 {[%emt 0:00:58]} 31. Ra5 {[%emt 0:00:24]} h5 {[%emt 0:00:32]} 32. Rxa4 {[%emt 0:00:06]} Rb2 {[%emt 0:01:38]} 33. Ra7 {[%emt 0:00:18]} Ra2 {[%emt 0:05:16]} 34. Kg3 {[%emt 0:02:22]} e5 {[%emt 0:03:32]} 35. h4 {[%emt 0:07:34]} Kf6 {[%emt 0:00:17]} 36. a4 {[%emt 0:00:24]} Kg7 {[%emt 0:01:02]} 37. a5 {[%emt 0:01:00]} Kf6 {[%emt 0:00:13]} 38. a6 {[%emt 0:00:59]} Kg7 {[%emt 0:00:54]} 39. Ra8 {[%emt 0:01:18]} Kf6 {[%emt 0:00:35]} 40. Kf3 {[%emt 0:00:44]} Ra4 {[%emt 0:05:14]} 41. g3 {[%emt 0:31:54]} Kf5 {[%emt 0:05:19]} 42. Rf8 {[%emt 0:00:00]} Kf6 {[%emt 0:00:16]} 43. Ra8 {[%emt 0:00:00]} Kf5 {[%emt 0:01:16]} 44. Ra7 {[%emt 0:00:00]} e4+ {[%emt 0:05:10]} 45. Kg2 {[%emt 0:00:00]} Kf6 {[%emt 0:00:26]} 46. Kf1 {[%emt 0:00:00]} Ra2 {[%emt 0:01:06]} 47. Ke1 {[%emt 0:00:00]} Ke6 {[%emt 0:00:52]} 48. Kf1 {[%emt 0:00:00]} Kf6 {[%emt 0:00:13]} 49. Kg2 {[%emt 0:00:00]} Ke6 {[%emt 0:01:14]} 50. Ra8 {[%emt 0:00:00]} Kf5 {[%emt 0:00:43]} 51. Rf8 {[%emt 0:00:00]} f6 {[%emt 0:00:46]} 52. Ra8 {[%emt 0:00:00]} Ra1 {[%emt 0:00:28]} 53. a7 {[%emt 0:00:00]} Ra3 {[%emt 0:00:57]} 54. Kh3 {[%emt 0:00:00]} Ra1 {[%emt 0:02:50]} 55. Kh2 {[%emt 0:00:00]} Ra3 {[%emt 0:04:20]} 56. Kg2 {[%emt 0:00:00]} Ra2 {[%emt 0:00:24]} 57. Kg1 {[%emt 0:00:57]} Ra1+ {[%emt 0:00:08]} 58. Kh2 {[%emt 0:00:05]} Ra3 {[%emt 0:00:43]} 59. Kh3 {[%emt 0:04:34]} Ra1 {[%emt 0:00:05]} 60. Re8 {[%emt 0:00:40]} Rxa7 {[%emt 0:00:12]} 61. f3 {[%emt 0:00:10]} g5 {[%emt 0:01:47]} 62. g4+ {[%emt 0:01:21]} Kg6 {[%emt 0:01:00]} 63. Rxe4 {[%emt 0:01:04]} hxg4+ {[%emt 0:01:25]} 64. Rxg4 {[%emt 0:00:19]} Ra3 {[%emt 0:01:33]} 65. hxg5 {[%emt 0:01:56]} Rxe3 {[%emt 0:00:20]} 66. gxf6+ {[%emt 0:00:05]} Kxf6 {[%emt 0:00:06]} 67. Kg3 {[%emt 0:00:04]} Ra3 {[%emt 0:00:26]} 68. Rb4 {[%emt 0:00:05]} Ra6 {[%emt 0:00:51]} 69. Kg4 {[%emt 0:00:17]} Kf7 {[%emt 0:02:11]} 70. Rb5 {[%emt 0:00:07]} Rc6 {[%emt 0:00:50]} 71. Kg5 {[%emt 0:00:17]} Ra6 {[%emt 0:00:09]} 72. Rb7+ {[%emt 0:00:06]} Kf8 {[%emt 0:00:04]} 73. Rd7 {[%emt 0:00:34]} Rb6 {[%emt 0:00:16]} 74. Rh7 {[%emt 0:00:07]} Ra6 {[%emt 0:00:23]} 75. Rh6 {[%emt 0:00:08]} Ra5+ {[%emt 0:00:22]} 76. Kg4 {[%emt 0:00:05]} Kf7 {[%emt 0:00:45]} 77. Rh7+ {[%emt 0:00:25]} Kf6 {[%emt 0:00:34]} 78. f4 {[%emt 0:00:05]} Rb5 {[%emt 0:00:16]} 79. Rh6+ {[%emt 0:00:11]} Kf7 {[%emt 0:00:05]} 80. Rd6 {[%emt 0:00:24]} Ra5 {[%emt 0:00:15]} 81. Rh6 {[%emt 0:00:37]} Rb5 {[%emt 0:00:11]} 82. Rh5 {[%emt 0:00:05]} Rxh5 {[%emt 0:00:19]} 83. Kxh5 {[%emt 0:00:05]} Kf6 {[%emt 0:00:02]} 84. Kg4 {[%emt 0:00:05]} Kg6 {[%emt 0:00:03]} 85. f5+ {[%emt 0:00:05]} Kf6 {[%emt 0:00:03]} 86. Kf4 {[%emt 0:00:03]} Kf7 {[%emt 0:00:03]} 87. Kg5 {[%emt 0:00:03]} Kg7 {[%emt 0:00:03]} 88. f6+ {[%emt 0:00:04]} Kf7 {[%emt 0:00:03]} 89. Kf5 {[%emt 0:00:05]} Kf8 {[%emt 0:00:01]} 90. Kg6 {[%emt 0:00:06]} Kg8 {[%emt 0:00:03]} 91. f7+ {[%emt 0:00:05]} Kf8 {[%emt 0:00:02]} 92. Kf6 {[%emt 0:00:04]} 1/2-1/2

[Event "41st Jacques-Lemans-Open 2022"]
[Site "St. Veit/Glan"]
[Date "2022.07.12"]
[Round "5.9"]
[White "Sandhoefner, Florian"]
[Black "Ofner, Maximilian"]
[Result "1/2-1/2"]
[ECO "B44"]
[WhiteElo "2289"]
[BlackElo "2194"]
[Annotator "ChessBase"]
[PlyCount "102"]
[EventDate "2022.07.09"]
[EventType "swiss"]
[EventCountry "AUT"]
[SourceTitle "playchess.com"]
[Source "ChessBase"]
[SourceQuality "1"]
[TimeControl "40/5400+30:1800+30"]

1. e4 {[%emt 0:00:01]} c5 {[%emt 0:00:08]} 2. Nf3 {[%emt 0:00:05]} e6 {[%emt 0:00:10]} 3. d4 {[%emt 0:00:06]} cxd4 {[%emt 0:00:05]} 4. Nxd4 {[%emt 0:00:02]} Nc6 {[%emt 0:00:15]} 5. Nb5 {[%emt 0:00:38]} d6 {[%emt 0:00:29]} 6. Bf4 {[%emt 0:00:12]} e5 {[%emt 0:03:25]} 7. Be3 {[%emt 0:01:14]} Nf6 {[%emt 0:04:10]} 8. Bg5 {[%emt 0:02:17]} a6 {[%emt 0:03:26]} 9. Bxf6 {[%emt 0:02:01]} gxf6 {[%emt 0:00:36]} 10. N5c3 {[%emt 0:00:09]} Be7 {[%emt 0:05:59]} 11. Nd5 {[%emt 0:05:10]} O-O {[%emt 0:04:52]} 12. Bd3 {[%emt 0:03:06]} Be6 {[%emt 0:02:56]} 13. Nbc3 {[%emt 0:03:09]} b5 {[%emt 0:08:06]} 14. O-O {[%emt 0:03:21]} b4 {[%emt 0:11:49]} 15. Ne2 {[%emt 0:04:16]} f5 {[%emt 0:15:07]} 16. Ng3 {[%emt 0:03:17]} f4 {[%emt 0:02:42]} 17. Nf5 {[%emt 0:01:07]} Bxf5 {[%emt 0:04:32]} 18. exf5 {[%emt 0:00:28]} Bf6 {[%emt 0:03:00]} 19. a3 {[%emt 0:03:02]} Rb8 {[%emt 0:04:36]} 20. Be4 {[%emt 0:02:12]} bxa3 {[%emt 0:07:08]} 21. Rxa3 {[%emt 0:01:04]} Nb4 {[%emt 0:01:18]} 22. Rh3 {[%emt 0:02:49]} Nxd5 {[%emt 0:05:26]} 23. Qh5 {[%emt 0:01:09]} Re8 {[%emt 0:02:43]} 24. Bxd5 {[%emt 0:01:04]} Qe7 {[%emt 0:04:55]} 25. Qxh7+ {[%emt 0:00:48]} Kf8 {[%emt 0:00:02]} 26. Rh6 {[%emt 0:00:53]} Rec8 {[%emt 0:02:29]} 27. Rg6 {[%emt 0:03:24]} Ke8 {[%emt 0:00:02]} 28. Qg8+ {[%emt 0:01:10]} Kd7 {[%emt 0:00:14]} 29. Qxf7 {[%emt 0:00:32]} Qxf7 {[%emt 0:00:59]} 30. Bxf7 {[%emt 0:00:07]} Rxc2 {[%emt 0:00:54]} 31. b3 {[%emt 0:06:21]} Ke7 {[%emt 0:00:06]} 32. Be6 {[%emt 0:00:35]} e4 {[%emt 0:02:11]} 33. g4 {[%emt 0:01:37]} e3 {[%emt 0:00:51]} 34. fxe3 {[%emt 0:00:59]} fxe3 {[%emt 0:00:34]} 35. Bc4 {[%emt 0:00:54]} d5 {[%emt 0:00:46]} 36. Bxd5 {[%emt 0:02:13]} e2 {[%emt 0:00:08]} 37. Re1 {[%emt 0:00:10]} Rd8 {[%emt 0:00:58]} 38. Bf3 {[%emt 0:00:45]} Rd1 {[%emt 0:00:18]} 39. Rxd1 {[%emt 0:00:32]} exd1=Q+ {[%emt 0:00:54]} 40. Bxd1 {[%emt 0:00:01]} Rc1 {[%emt 0:00:07]} 41. g5 {[%emt 0:30:24]} Rxd1+ {[%emt 0:30:25]} 42. Kf2 {[%emt 0:00:51]} Bd4+ {[%emt 0:00:00]} 43. Ke2 {[%emt 0:00:00]} Rh1 {[%emt 0:00:00]} 44. Kd3 {[%emt 0:00:00]} Bb2 {[%emt 0:00:00]} 45. Rh6 {[%emt 0:00:00]} Rf1 {[%emt 0:00:00]} 46. f6+ {[%emt 0:00:00]} Ke6 47. h4 {[%emt 0:00:00]} Rf3+ {[%emt 0:00:00]} 48. Kc4 {[%emt 0:00:00]} a5 {[%emt 0:00:00]} 49. Rh7 {[%emt 0:00:00]} Rc3+ {[%emt 0:02:13]} 50. Kb5 {[%emt 0:00:00]} Rxb3+ {[%emt 0:00:04]} 51. Kxa5 {[%emt 0:00:00]} Bxf6 {[%emt 0:01:14]} 1/2-1/2